[Event "Early-Titled-Tuesday-Blitz-April-02-2024"]
[Site "Chess.com"]
[Date "2024.04.02"]
[Round "8"]
[White "kai_nov"]
[Black "MikeWizard"]
[Result "0-1"]
[WhiteElo "2325"]
[BlackElo "2194"]
[TimeControl "180+1"]
[EndTime "9:27:48 PDT"]
[Termination "MikeWizard won by checkmate"]

1. d4 {[%clk 0:02:56]} 1... Nf6 {[%clk 0:02:59]} 2. Nc3 {[%clk 0:02:54.4]} 2...
d6 {[%clk 0:02:55.7]} 3. Bg5 {[%clk 0:02:53.7]} 3... Nbd7 {[%clk 0:02:54.3]} 4.
e4 {[%clk 0:02:52.5]} 4... e5 {[%clk 0:02:52.4]} 5. Nf3 {[%clk 0:02:50.9]} 5...
Be7 {[%clk 0:02:52.6]} 6. Bc4 {[%clk 0:02:48.3]} 6... h6 {[%clk 0:02:52]} 7.
Bxf6 {[%clk 0:02:46.2]} 7... Bxf6 {[%clk 0:02:46.8]} 8. dxe5 {[%clk 0:02:46]}
8... Nxe5 {[%clk 0:02:45.2]} 9. Nxe5 {[%clk 0:02:44.5]} 9... Bxe5 {[%clk
0:02:44.6]} 10. O-O {[%clk 0:02:43.4]} 10... O-O {[%clk 0:02:43.2]} 11. f4
{[%clk 0:02:42.4]} 11... Bxc3 {[%clk 0:02:39.5]} 12. bxc3 {[%clk 0:02:41.5]}
12... Qf6 {[%clk 0:02:39.6]} 13. Qd4 {[%clk 0:02:40]} 13... Be6 {[%clk
0:02:38.5]} 14. Qxf6 {[%clk 0:02:39.4]} 14... gxf6 {[%clk 0:02:37.5]} 15. Bd3
{[%clk 0:02:39.5]} 15... a5 {[%clk 0:02:29.4]} 16. Rab1 {[%clk 0:02:34]} 16...
b6 {[%clk 0:02:28.2]} 17. Rf3 {[%clk 0:02:21.2]} 17... Bxa2 {[%clk 0:02:17.3]}
18. Rg3+ {[%clk 0:02:17.2]} 18... Kh8 {[%clk 0:02:16.5]} 19. Rf1 {[%clk
0:02:16.3]} 19... a4 {[%clk 0:02:12.8]} 20. f5 {[%clk 0:02:12.8]} 20... Rg8
{[%clk 0:02:06.3]} 21. Rh3 {[%clk 0:02:08.9]} 21... Kh7 {[%clk 0:02:05.1]} 22.
Rf4 {[%clk 0:02:06]} 22... Rg5 {[%clk 0:02:03.2]} 23. Rfh4 {[%clk 0:02:02.9]}
23... h5 {[%clk 0:02:03.4]} 24. Rxh5+ {[%clk 0:02:00.9]} 24... Rxh5 {[%clk
0:02:03.6]} 25. Rxh5+ {[%clk 0:01:59.8]} 25... Kg7 {[%clk 0:02:03.6]} 26. c4
{[%clk 0:01:58.8]} 26... a3 {[%clk 0:02:02.6]} 27. g4 {[%clk 0:01:35]} 27... Bb1
{[%clk 0:01:58.7]} 28. g5 {[%clk 0:01:32]} 28... a2 {[%clk 0:01:51.6]} 29. e5
{[%clk 0:01:25.2]} 29... dxe5 {[%clk 0:01:48.8]} 30. g6 {[%clk 0:01:22.3]} 30...
Rh8 {[%clk 0:01:38.4]} 31. Rxh8 {[%clk 0:01:04.1]} 31... Kxh8 {[%clk 0:01:36.5]}
32. gxf7 {[%clk 0:01:04.4]} 32... Kg7 {[%clk 0:01:36.1]} 33. c5 {[%clk
0:00:55.7]} 33... a1=Q {[%clk 0:01:30.2]} 34. cxb6 {[%clk 0:00:52.8]} 34... Qd4+
{[%clk 0:01:27.1]} 35. Kg2 {[%clk 0:00:49.9]} 35... cxb6 {[%clk 0:01:27]} 36. h4
{[%clk 0:00:46.3]} 36... e4 {[%clk 0:01:26.6]} 37. h5 {[%clk 0:00:37.7]} 37...
exd3 {[%clk 0:01:23.6]} 38. cxd3 {[%clk 0:00:36]} 38... Kxf7 {[%clk 0:01:22.7]}
39. h6 {[%clk 0:00:34.5]} 39... Bxd3 {[%clk 0:01:18.5]} 40. h7 {[%clk
0:00:34.3]} 40... Kg7 {[%clk 0:01:13.8]} 41. h8=Q+ {[%clk 0:00:21.9]} 41... Kxh8
{[%clk 0:01:12.6]} 42. Kh3 {[%clk 0:00:21.8]} 42... Qg1 {[%clk 0:01:10.5]} 43.
Kh4 {[%clk 0:00:20.1]} 43... Bf1 {[%clk 0:01:06.6]} 44. Kh5 {[%clk 0:00:19.4]}
44... Qg5# {[%clk 0:01:05.5]} 0-1

[Event "Early-Titled-Tuesday-Blitz-April-02-2024"]
[Site "Chess.com"]
[Date "2024.04.02"]
[Round "8"]
[White "ViIIagra"]
[Black "Meri-Arabidze"]
[Result "1-0"]
[WhiteElo "2897"]
[BlackElo "2685"]
[TimeControl "180+1"]
[EndTime "9:27:50 PDT"]
[Termination "ViIIagra won by resignation"]

1. e4 {[%clk 0:02:57.9]} 1... c5 {[%clk 0:02:59.5]} 2. Nc3 {[%clk 0:02:58.2]}
2... Nc6 {[%clk 0:02:59.3]} 3. g3 {[%clk 0:02:58.6]} 3... g6 {[%clk 0:02:59.1]}
4. Bg2 {[%clk 0:02:58.7]} 4... Bg7 {[%clk 0:02:59.5]} 5. d3 {[%clk 0:02:59.3]}
5... d6 {[%clk 0:02:59.8]} 6. f4 {[%clk 0:02:59.9]} 6... e6 {[%clk 0:02:59.8]}
7. Nf3 {[%clk 0:03:00.6]} 7... Nge7 {[%clk 0:03:00.2]} 8. O-O {[%clk 0:03:01.3]}
8... O-O {[%clk 0:03:00.5]} 9. Be3 {[%clk 0:03:01.8]} 9... Nd4 {[%clk
0:03:00.3]} 10. Rb1 {[%clk 0:03:00.5]} 10... Rb8 {[%clk 0:02:58.7]} 11. Ne2
{[%clk 0:03:00.3]} 11... Nec6 {[%clk 0:02:46.6]} 12. c3 {[%clk 0:02:51.8]} 12...
Nxf3+ {[%clk 0:02:46.6]} 13. Rxf3 {[%clk 0:02:49.6]} 13... b5 {[%clk 0:02:44.5]}
14. d4 {[%clk 0:02:31.4]} 14... cxd4 {[%clk 0:02:36]} 15. cxd4 {[%clk
0:02:32.3]} 15... d5 {[%clk 0:02:31]} 16. e5 {[%clk 0:02:30]} 16... b4 {[%clk
0:02:16.9]} 17. g4 {[%clk 0:02:26.3]} 17... a5 {[%clk 0:02:07.9]} 18. Ng3 {[%clk
0:02:08.7]} 18... f6 {[%clk 0:02:04.3]} 19. Rc1 {[%clk 0:02:08.8]} 19... Bd7
{[%clk 0:01:59.2]} 20. f5 {[%clk 0:02:09.1]} 20... fxe5 {[%clk 0:01:48.1]} 21.
fxe6 {[%clk 0:02:09]} 21... Be8 {[%clk 0:01:28.9]} 22. Rxf8+ {[%clk 0:02:07.4]}
22... Bxf8 {[%clk 0:01:29.1]} 23. dxe5 {[%clk 0:02:02.4]} 23... d4 {[%clk
0:01:15.5]} 24. Bf4 {[%clk 0:01:39.3]} 24... Qb6 {[%clk 0:01:15]} 25. Ne4 {[%clk
0:01:37]} 25... d3+ {[%clk 0:00:54.4]} 26. Kh1 {[%clk 0:01:33.6]} 26... Nd4
{[%clk 0:00:54.7]} 27. Nf6+ {[%clk 0:01:06.8]} 27... Kh8 {[%clk 0:00:54.6]} 28.
Qxd3 {[%clk 0:01:06.9]} 28... Nxe6 {[%clk 0:00:45.5]} 29. Qh3 {[%clk 0:01:01.6]}
29... Qa7 {[%clk 0:00:19.6]} 30. Be3 {[%clk 0:01:01.7]} 30... Qe7 {[%clk
0:00:17.6]} 31. Bd5 {[%clk 0:00:52.6]} 31... Nc7 {[%clk 0:00:12.2]} 32. Bc5
{[%clk 0:00:47.3]} 32... Qg7 {[%clk 0:00:12.3]} 33. Bxf8 {[%clk 0:00:47.2]} 1-0

[Event "Early-Titled-Tuesday-Blitz-April-02-2024"]
[Site "Chess.com"]
[Date "2024.04.02"]
[Round "8"]
[White "IMchanged"]
[Black "Chessexplained"]
[Result "1-0"]
[WhiteElo "2674"]
[BlackElo "2550"]
[TimeControl "180+1"]
[EndTime "9:27:53 PDT"]
[Termination "IMchanged won on time"]

1. d4 {[%clk 0:03:00.9]} 1... Nf6 {[%clk 0:02:59.3]} 2. Nc3 {[%clk 0:03:00.4]}
2... d5 {[%clk 0:02:58.4]} 3. Bf4 {[%clk 0:03:00]} 3... a6 {[%clk 0:02:58.3]} 4.
e3 {[%clk 0:02:58.7]} 4... b5 {[%clk 0:02:58.2]} 5. h4 {[%clk 0:02:58.6]} 5...
e6 {[%clk 0:02:55.7]} 6. g4 {[%clk 0:02:57.6]} 6... c5 {[%clk 0:02:54.1]} 7. g5
{[%clk 0:02:53.9]} 7... Nfd7 {[%clk 0:02:53.6]} 8. Nf3 {[%clk 0:02:47.7]} 8...
Nc6 {[%clk 0:02:45.7]} 9. h5 {[%clk 0:02:45.6]} 9... b4 {[%clk 0:02:39.8]} 10.
Ne2 {[%clk 0:02:43.9]} 10... a5 {[%clk 0:02:35.9]} 11. Ng3 {[%clk 0:02:42.8]}
11... g6 {[%clk 0:01:30.3]} 12. hxg6 {[%clk 0:02:36.6]} 12... fxg6 {[%clk
0:01:31.2]} 13. Bd3 {[%clk 0:02:25.4]} 13... Ne7 {[%clk 0:01:29.4]} 14. Ne5
{[%clk 0:02:22.2]} 14... Bg7 {[%clk 0:01:02.6]} 15. Nh5 {[%clk 0:02:07.7]} 15...
Bxe5 {[%clk 0:00:56.6]} 16. dxe5 {[%clk 0:02:03.4]} 16... Ba6 {[%clk 0:00:41.4]}
17. Nf6+ {[%clk 0:01:29.6]} 17... Nxf6 {[%clk 0:00:39.4]} 18. exf6 {[%clk
0:01:30.2]} 18... Nf5 {[%clk 0:00:36.6]} 19. Be5 {[%clk 0:01:27.3]} 19... Kf7
{[%clk 0:00:30.7]} 20. e4 {[%clk 0:01:17]} 20... Bxd3 {[%clk 0:00:24.8]} 21.
Qxd3 {[%clk 0:01:17.9]} 21... dxe4 {[%clk 0:00:21.9]} 22. Qxe4 {[%clk
0:01:18.8]} 22... Qd5 {[%clk 0:00:21.6]} 23. f3 {[%clk 0:01:18.1]} 23... Rad8
{[%clk 0:00:17.3]} 24. Qxd5 {[%clk 0:01:13]} 24... Rxd5 {[%clk 0:00:11.6]} 25.
f4 {[%clk 0:01:12.7]} 25... Nd4 {[%clk 0:00:12.1]} 26. O-O-O {[%clk 0:01:11.4]}
26... h5 {[%clk 0:00:07.4]} 27. gxh6 {[%clk 0:01:09.5]} 27... Rh7 {[%clk
0:00:06.1]} 28. c3 {[%clk 0:01:08.2]} 28... Nf5 {[%clk 0:00:06.2]} 29. c4 {[%clk
0:01:07.6]} 29... Rxd1+ {[%clk 0:00:04.9]} 30. Rxd1 {[%clk 0:01:08.2]} 30...
Rxh6 {[%clk 0:00:03.1]} 31. Rd7+ {[%clk 0:01:07.4]} 31... Kf8 {[%clk 0:00:03.7]}
32. Bc7 {[%clk 0:00:57.9]} 32... Rh2 {[%clk 0:00:03.2]} 33. Bb6 {[%clk 0:00:50]}
1-0

[Event "Early-Titled-Tuesday-Blitz-April-02-2024"]
[Site "Chess.com"]
[Date "2024.04.02"]
[Round "8"]
[White "ViratKohl_i"]
[Black "Suduvasachmatai"]
[Result "1-0"]
[WhiteElo "2508"]
[BlackElo "2295"]
[TimeControl "180+1"]
[EndTime "9:27:54 PDT"]
[Termination "ViratKohl_i won by resignation"]

1. Nf3 {[%clk 0:03:00.9]} 1... c5 {[%clk 0:02:59.5]} 2. e4 {[%clk 0:02:59.8]}
2... d6 {[%clk 0:02:58.8]} 3. Bb5+ {[%clk 0:02:57.5]} 3... Bd7 {[%clk
0:02:58.4]} 4. Bxd7+ {[%clk 0:02:56.8]} 4... Qxd7 {[%clk 0:02:58.7]} 5. O-O
{[%clk 0:02:55.3]} 5... Nc6 {[%clk 0:02:58.2]} 6. c3 {[%clk 0:02:53.9]} 6... Nf6
{[%clk 0:02:57.8]} 7. d4 {[%clk 0:02:52.8]} 7... cxd4 {[%clk 0:02:52.3]} 8. cxd4
{[%clk 0:02:53.7]} 8... Nxe4 {[%clk 0:02:47.4]} 9. d5 {[%clk 0:02:53]} 9... Ne5
{[%clk 0:02:43]} 10. Re1 {[%clk 0:02:51.1]} 10... Nxf3+ {[%clk 0:02:38.3]} 11.
Qxf3 {[%clk 0:02:50.1]} 11... Nf6 {[%clk 0:02:38.2]} 12. Nc3 {[%clk 0:02:45]}
12... g6 {[%clk 0:02:33.3]} 13. Qxf6 {[%clk 0:02:43.4]} 13... Rg8 {[%clk
0:02:31.3]} 14. Qf3 {[%clk 0:02:36.3]} 14... Bg7 {[%clk 0:02:31.1]} 15. Bg5
{[%clk 0:02:34.1]} 15... f6 {[%clk 0:02:30.6]} 16. Bf4 {[%clk 0:02:29.5]} 16...
g5 {[%clk 0:02:29.6]} 17. Qh5+ {[%clk 0:02:26.2]} 17... Kf8 {[%clk 0:02:28.2]}
18. Bg3 {[%clk 0:02:24.3]} 18... h6 {[%clk 0:02:25.7]} 19. Re6 {[%clk
0:02:20.1]} 19... f5 {[%clk 0:02:22]} 20. Rae1 {[%clk 0:02:05.8]} 20... f4
{[%clk 0:02:20.5]} 21. Qf3 {[%clk 0:01:56.4]} 21... Be5 {[%clk 0:02:02.2]} 22.
h3 {[%clk 0:01:50.8]} 22... Ke8 {[%clk 0:01:55.8]} 23. Bh2 {[%clk 0:01:48.5]}
23... Rc8 {[%clk 0:01:51.5]} 24. Qh5+ {[%clk 0:01:37]} 24... Kd8 {[%clk
0:01:50.9]} 25. Qf7 {[%clk 0:01:36.3]} 25... Re8 {[%clk 0:01:49.7]} 26. g3
{[%clk 0:01:28.4]} 26... Kc7 {[%clk 0:01:40.2]} 27. gxf4 {[%clk 0:01:26.7]}
27... gxf4 {[%clk 0:01:40.1]} 28. Bxf4 {[%clk 0:01:19.7]} 28... Bf6 {[%clk
0:01:36.3]} 29. Bg3 {[%clk 0:01:10.7]} 29... Rf8 {[%clk 0:01:24]} 30. Qh5 {[%clk
0:00:53.8]} 30... Rg8 {[%clk 0:01:20.8]} 31. Ne4 {[%clk 0:00:46]} 31... Be5
{[%clk 0:01:19.7]} 32. Rxe5 {[%clk 0:00:44.6]} 32... dxe5 {[%clk 0:01:19.6]} 33.
Qxe5+ {[%clk 0:00:45]} 33... Kd8 {[%clk 0:01:19.2]} 34. d6 {[%clk 0:00:45.2]}
34... exd6 {[%clk 0:01:17.7]} 35. Nxd6 {[%clk 0:00:38.6]} 35... Rc6 {[%clk
0:01:14.3]} 36. Ne4 {[%clk 0:00:23.1]} 36... Re8 {[%clk 0:01:01.1]} 37. Qb8+
{[%clk 0:00:20.5]} 37... Rc8 {[%clk 0:01:00.5]} 38. Bh4+ {[%clk 0:00:20.4]}
38... Re7 {[%clk 0:00:59.7]} 39. Bxe7+ {[%clk 0:00:20.5]} 39... Qxe7 {[%clk
0:00:59.9]} 40. Rd1+ {[%clk 0:00:20.7]} 1-0

[Event "Early-Titled-Tuesday-Blitz-April-02-2024"]
[Site "Chess.com"]
[Date "2024.04.02"]
[Round "8"]
[White "LornerAcosta"]
[Black "Kotofeyca"]
[Result "1-0"]
[WhiteElo "2616"]
[BlackElo "2504"]
[TimeControl "180+1"]
[EndTime "9:27:59 PDT"]
[Termination "LornerAcosta won on time"]

1. Nf3 {[%clk 0:03:00.9]} 1... d5 {[%clk 0:02:59.8]} 2. e3 {[%clk 0:03:00.7]}
2... c6 {[%clk 0:03:00.7]} 3. c4 {[%clk 0:02:59.8]} 3... Nf6 {[%clk 0:02:59.7]}
4. Qc2 {[%clk 0:02:58.7]} 4... Bg4 {[%clk 0:02:57.7]} 5. Be2 {[%clk 0:02:58.4]}
5... Nbd7 {[%clk 0:02:50.6]} 6. d4 {[%clk 0:02:53.7]} 6... e6 {[%clk 0:02:44.7]}
7. Nbd2 {[%clk 0:02:53.5]} 7... Bf5 {[%clk 0:02:41.3]} 8. Bd3 {[%clk 0:02:51.7]}
8... Bxd3 {[%clk 0:02:40.2]} 9. Qxd3 {[%clk 0:02:52.6]} 9... Bb4 {[%clk
0:02:35.3]} 10. O-O {[%clk 0:02:49.3]} 10... Qe7 {[%clk 0:02:33.9]} 11. a3
{[%clk 0:02:45]} 11... Bxd2 {[%clk 0:02:26.1]} 12. Nxd2 {[%clk 0:02:41.1]} 12...
Nb6 {[%clk 0:02:16.7]} 13. b3 {[%clk 0:02:37.4]} 13... O-O {[%clk 0:02:06]} 14.
Bb2 {[%clk 0:02:35.8]} 14... Rfd8 {[%clk 0:02:03.3]} 15. Qc2 {[%clk 0:02:25.7]}
15... Rac8 {[%clk 0:01:53.3]} 16. a4 {[%clk 0:02:17.3]} 16... Qc7 {[%clk
0:01:36.9]} 17. h3 {[%clk 0:02:14.3]} 17... Nbd7 {[%clk 0:01:17.9]} 18. Rac1
{[%clk 0:02:11.3]} 18... a6 {[%clk 0:01:13.9]} 19. Rfe1 {[%clk 0:02:07.9]} 19...
Qb8 {[%clk 0:01:08.3]} 20. e4 {[%clk 0:02:02.7]} 20... dxe4 {[%clk 0:01:05.9]}
21. Nxe4 {[%clk 0:02:03.6]} 21... Nxe4 {[%clk 0:00:58.5]} 22. Qxe4 {[%clk
0:02:04.5]} 22... Qc7 {[%clk 0:00:45.8]} 23. d5 {[%clk 0:01:51]} 23... exd5
{[%clk 0:00:24.7]} 24. cxd5 {[%clk 0:01:49.2]} 24... Nf8 {[%clk 0:00:18.5]} 25.
dxc6 {[%clk 0:01:23]} 25... bxc6 {[%clk 0:00:17.7]} 26. h4 {[%clk 0:01:18.7]}
26... Ne6 {[%clk 0:00:17.3]} 27. Be5 {[%clk 0:01:12.8]} 27... Qd7 {[%clk
0:00:16.8]} 28. Rc3 {[%clk 0:01:10.8]} 28... Qd5 {[%clk 0:00:16.8]} 29. Qg4
{[%clk 0:01:08.7]} 29... Qd2 {[%clk 0:00:14.6]} 30. Rce3 {[%clk 0:01:05]} 30...
Rd5 {[%clk 0:00:12.3]} 31. R1e2 {[%clk 0:01:01.1]} 31... Qd1+ {[%clk 0:00:11.7]}
32. Kh2 {[%clk 0:01:01.5]} 32... h6 {[%clk 0:00:12.2]} 33. Rg3 {[%clk
0:00:59.6]} 33... g6 {[%clk 0:00:09.4]} 34. Qf3 {[%clk 0:00:55.6]} 34... Qd3
{[%clk 0:00:07.6]} 35. Qf6 {[%clk 0:00:54.3]} 35... Rxe5 {[%clk 0:00:03]} 36.
Rxe5 {[%clk 0:00:54]} 36... Qd4 {[%clk 0:00:02]} 37. Rxe6 {[%clk 0:00:53.2]} 1-0

[Event "Early-Titled-Tuesday-Blitz-April-02-2024"]
[Site "Chess.com"]
[Date "2024.04.02"]
[Round "8"]
[White "CarlosjPineror"]
[Black "AlexeiShirov"]
[Result "0-1"]
[WhiteElo "2691"]
[BlackElo "2825"]
[TimeControl "180+1"]
[EndTime "9:28:01 PDT"]
[Termination "AlexeiShirov won by resignation"]

1. e4 {[%clk 0:03:00.9]} 1... e5 {[%clk 0:02:59.6]} 2. Nf3 {[%clk 0:03:01]} 2...
Nc6 {[%clk 0:02:59.6]} 3. Bb5 {[%clk 0:03:00.7]} 3... a6 {[%clk 0:02:59.9]} 4.
Ba4 {[%clk 0:03:00.5]} 4... Nf6 {[%clk 0:03:00.1]} 5. d3 {[%clk 0:03:00.9]} 5...
d6 {[%clk 0:02:56.6]} 6. c3 {[%clk 0:03:00]} 6... g6 {[%clk 0:02:56.4]} 7. h3
{[%clk 0:02:54.6]} 7... Bg7 {[%clk 0:02:56.1]} 8. O-O {[%clk 0:02:55.3]} 8...
O-O {[%clk 0:02:55.6]} 9. Re1 {[%clk 0:02:54.7]} 9... Nh5 {[%clk 0:02:53.6]} 10.
g4 {[%clk 0:02:30.6]} 10... Nf6 {[%clk 0:02:44.8]} 11. Bg5 {[%clk 0:02:17.1]}
11... Qd7 {[%clk 0:02:41.6]} 12. Nh2 {[%clk 0:02:04.1]} 12... h5 {[%clk
0:02:40]} 13. f3 {[%clk 0:02:00.1]} 13... Nh7 {[%clk 0:02:39.6]} 14. Be3 {[%clk
0:01:56.6]} 14... f5 {[%clk 0:02:38.8]} 15. Nd2 {[%clk 0:01:47.9]} 15... Bf6
{[%clk 0:02:27.1]} 16. Re2 {[%clk 0:01:30.6]} 16... hxg4 {[%clk 0:02:21.9]} 17.
hxg4 {[%clk 0:01:29.8]} 17... f4 {[%clk 0:02:19.2]} 18. Bf2 {[%clk 0:01:26.9]}
18... Ng5 {[%clk 0:02:18.8]} 19. Kg2 {[%clk 0:01:18.1]} 19... Qh7 {[%clk
0:02:17.8]} 20. Qh1 {[%clk 0:01:11.8]} 20... Qh3+ {[%clk 0:02:14.1]} 21. Kg1
{[%clk 0:01:06.7]} 21... Kg7 {[%clk 0:02:12.7]} 22. Nhf1 {[%clk 0:01:01]} 22...
Bxg4 {[%clk 0:02:07.3]} 23. Qxh3 {[%clk 0:00:50.7]} 23... Nxh3+ {[%clk
0:02:03.5]} 24. Kg2 {[%clk 0:00:48.8]} 24... Bd7 {[%clk 0:02:00.7]} 25. Nh2
{[%clk 0:00:45.7]} 25... Rh8 {[%clk 0:01:59.1]} 26. Rh1 {[%clk 0:00:44.5]} 26...
Nxf2 {[%clk 0:01:52.2]} 27. Rxf2 {[%clk 0:00:40.1]} 27... Bh3+ {[%clk
0:01:45.4]} 28. Kg1 {[%clk 0:00:40]} 28... Bh4 {[%clk 0:01:43.7]} 29. Re2 {[%clk
0:00:37]} 29... Bg3 {[%clk 0:01:40.1]} 30. Ng4 {[%clk 0:00:29.2]} 30... Rh4
{[%clk 0:01:35]} 31. Nf2 {[%clk 0:00:22.3]} 31... Bxf2+ {[%clk 0:01:28.8]} 32.
Rxf2 {[%clk 0:00:22.2]} 32... Rah8 {[%clk 0:01:28.9]} 33. Rfh2 {[%clk
0:00:22.2]} 33... g5 {[%clk 0:01:20.2]} 34. Bxc6 {[%clk 0:00:21.9]} 34... bxc6
{[%clk 0:01:18.8]} 35. Kf2 {[%clk 0:00:20.4]} 35... Kf6 {[%clk 0:01:13.9]} 36.
Nc4 {[%clk 0:00:20]} 36... Be6 {[%clk 0:01:11.3]} 37. Rxh4 {[%clk 0:00:18.5]}
37... gxh4 {[%clk 0:01:10.5]} 38. Na5 {[%clk 0:00:17.2]} 38... c5 {[%clk
0:01:10.3]} 39. c4 {[%clk 0:00:17.2]} 39... h3 {[%clk 0:01:08.1]} 40. Rh2 {[%clk
0:00:16]} 40... Rb8 {[%clk 0:01:03.6]} 41. Kf1 {[%clk 0:00:13.8]} 41... Kg5
{[%clk 0:01:01.7]} 42. Nb3 {[%clk 0:00:13.1]} 42... Kh4 {[%clk 0:00:59.7]} 43.
Kf2 {[%clk 0:00:13.1]} 43... a5 {[%clk 0:00:59.5]} 0-1

[Event "Early-Titled-Tuesday-Blitz-April-02-2024"]
[Site "Chess.com"]
[Date "2024.04.02"]
[Round "8"]
[White "PavelShkapenko"]
[Black "artin10862"]
[Result "1-0"]
[WhiteElo "2716"]
[BlackElo "2896"]
[TimeControl "180+1"]
[EndTime "9:28:05 PDT"]
[Termination "PavelShkapenko won by resignation"]

1. e4 {[%clk 0:03:00.9]} 1... e5 {[%clk 0:02:59.5]} 2. Nf3 {[%clk 0:03:00.2]}
2... Nc6 {[%clk 0:03:00.2]} 3. Nc3 {[%clk 0:03:00.3]} 3... Nf6 {[%clk 0:02:59]}
4. d4 {[%clk 0:03:00.2]} 4... exd4 {[%clk 0:02:58.9]} 5. Nxd4 {[%clk 0:03:00.4]}
5... Nxe4 {[%clk 0:02:59.6]} 6. Nxe4 {[%clk 0:02:48.6]} 6... Qe7 {[%clk
0:02:59.5]} 7. Bd3 {[%clk 0:02:48.8]} 7... Nxd4 {[%clk 0:02:59.4]} 8. O-O {[%clk
0:02:47.9]} 8... Ne6 {[%clk 0:02:59.6]} 9. Bc4 {[%clk 0:02:40.5]} 9... c6 {[%clk
0:02:45.3]} 10. Bxe6 {[%clk 0:02:20.2]} 10... dxe6 {[%clk 0:02:40.2]} 11. Qh5
{[%clk 0:02:19.9]} 11... Qc7 {[%clk 0:02:04.5]} 12. Bg5 {[%clk 0:02:15.3]} 12...
e5 {[%clk 0:01:59]} 13. Rad1 {[%clk 0:01:53.3]} 13... Bf5 {[%clk 0:01:42.9]} 14.
Nf6+ {[%clk 0:01:53.3]} 14... gxf6 {[%clk 0:01:39.5]} 15. Bxf6 {[%clk
0:01:54.2]} 15... Bg6 {[%clk 0:01:34.8]} 16. Qh3 {[%clk 0:01:53.1]} 16... Rg8
{[%clk 0:01:27.8]} 17. Bxe5 {[%clk 0:01:37.8]} 17... Qc8 {[%clk 0:01:20.7]} 18.
Qg3 {[%clk 0:01:36.8]} 18... Be7 {[%clk 0:01:10.1]} 19. Rfe1 {[%clk 0:01:25.3]}
19... Kf8 {[%clk 0:01:08.5]} 20. Bf4 {[%clk 0:00:48.8]} 20... Rg7 {[%clk
0:00:15]} 21. Bh6 {[%clk 0:00:46.4]} 21... Qe8 {[%clk 0:00:10.3]} 22. Bxg7+
{[%clk 0:00:32]} 22... Kxg7 {[%clk 0:00:10.8]} 23. Qe5+ {[%clk 0:00:32.7]} 23...
Bf6 {[%clk 0:00:09.6]} 24. Qxe8 {[%clk 0:00:32.7]} 24... Rxe8 {[%clk 0:00:10.4]}
25. Rxe8 {[%clk 0:00:33.1]} 25... Bxc2 {[%clk 0:00:11]} 26. Rd7 {[%clk
0:00:30.6]} 26... b6 {[%clk 0:00:07.8]} 27. Rxa7 {[%clk 0:00:29.8]} 27... Bxb2
{[%clk 0:00:08.1]} 28. Re2 {[%clk 0:00:29.1]} 1-0

[Event "Early-Titled-Tuesday-Blitz-April-02-2024"]
[Site "Chess.com"]
[Date "2024.04.02"]
[Round "8"]
[White "AsaHoffmann"]
[Black "AlexanderKing"]
[Result "1-0"]
[WhiteElo "2413"]
[BlackElo "2598"]
[TimeControl "180+1"]
[EndTime "9:28:06 PDT"]
[Termination "AsaHoffmann won on time"]

1. d4 {[%clk 0:02:48.3]} 1... d5 {[%clk 0:02:59.9]} 2. Bg5 {[%clk 0:02:47.7]}
2... Nd7 {[%clk 0:02:44.7]} 3. c4 {[%clk 0:02:46.5]} 3... c6 {[%clk 0:02:34.8]}
4. cxd5 {[%clk 0:02:45.4]} 4... cxd5 {[%clk 0:02:35.7]} 5. Nc3 {[%clk
0:02:45.4]} 5... Ngf6 {[%clk 0:02:33.4]} 6. e3 {[%clk 0:02:44.2]} 6... e6 {[%clk
0:02:18.1]} 7. Bd3 {[%clk 0:02:43.2]} 7... Be7 {[%clk 0:02:12.1]} 8. f4 {[%clk
0:02:42.7]} 8... b6 {[%clk 0:02:04.2]} 9. Nf3 {[%clk 0:02:42.2]} 9... Bb7 {[%clk
0:02:04]} 10. O-O {[%clk 0:02:41.8]} 10... Ne4 {[%clk 0:01:55.1]} 11. Bxe7
{[%clk 0:02:40.1]} 11... Qxe7 {[%clk 0:01:56]} 12. Bxe4 {[%clk 0:02:40]} 12...
dxe4 {[%clk 0:01:56.4]} 13. Ne5 {[%clk 0:02:40]} 13... O-O {[%clk 0:01:45]} 14.
Rc1 {[%clk 0:02:33.2]} 14... Rac8 {[%clk 0:01:43.5]} 15. Qb3 {[%clk 0:02:29.1]}
15... Nf6 {[%clk 0:01:39.3]} 16. h3 {[%clk 0:02:20.7]} 16... Nd5 {[%clk
0:01:23.7]} 17. Nxd5 {[%clk 0:02:15.3]} 17... Bxd5 {[%clk 0:01:24.6]} 18. Qa4
{[%clk 0:02:12]} 18... f6 {[%clk 0:01:14.1]} 19. Ng4 {[%clk 0:02:10]} 19... h5
{[%clk 0:01:02.7]} 20. Nf2 {[%clk 0:02:09.4]} 20... Qb7 {[%clk 0:01:03.1]} 21.
b3 {[%clk 0:02:03.5]} 21... a5 {[%clk 0:01:03.3]} 22. Qa3 {[%clk 0:02:02.4]}
22... Qd7 {[%clk 0:01:01.3]} 23. Rxc8 {[%clk 0:01:59.3]} 23... Rxc8 {[%clk
0:01:02.2]} 24. Rc1 {[%clk 0:01:59.1]} 24... Kh7 {[%clk 0:00:58.6]} 25. Qb2
{[%clk 0:01:53.7]} 25... Rc6 {[%clk 0:00:55.7]} 26. g4 {[%clk 0:01:51.6]} 26...
hxg4 {[%clk 0:00:50.8]} 27. hxg4 {[%clk 0:01:51.2]} 27... Qc7 {[%clk 0:00:48.3]}
28. Rxc6 {[%clk 0:01:50]} 28... Qxc6 {[%clk 0:00:49.2]} 29. Kg2 {[%clk
0:01:47.1]} 29... Kg8 {[%clk 0:00:46.8]} 30. Nd1 {[%clk 0:01:38.2]} 30... Qb5
{[%clk 0:00:43.5]} 31. Kf2 {[%clk 0:01:32.6]} 31... Qd3 {[%clk 0:00:35]} 32. Qe2
{[%clk 0:01:27.9]} 32... Qb1 {[%clk 0:00:33.8]} 33. Kg2 {[%clk 0:01:20.1]} 33...
Qc1 {[%clk 0:00:29.5]} 34. Nf2 {[%clk 0:01:14.9]} 34... Qc6 {[%clk 0:00:09.7]}
35. g5 {[%clk 0:01:14.4]} 35... fxg5 {[%clk 0:00:04.5]} 36. fxg5 {[%clk
0:01:14.3]} 36... Qd6 {[%clk 0:00:02]} 37. Qh5 {[%clk 0:01:08.2]} 37... Qe7
{[%clk 0:00:01.5]} 38. g6 {[%clk 0:01:06.1]} 38... Qf6 {[%clk 0:00:02]} 39. Nh3
{[%clk 0:01:00.6]} 39... Kf8 {[%clk 0:00:01.5]} 40. Nf4 {[%clk 0:01:00.4]} 40...
Ke7 {[%clk 0:00:01]} 41. Qxd5 {[%clk 0:00:54.9]} 41... exd5 {[%clk 0:00:01.9]}
42. Nxd5+ {[%clk 0:00:55]} 42... Ke6 {[%clk 0:00:01.2]} 43. Nxf6 {[%clk
0:00:55]} 43... Kxf6 {[%clk 0:00:01.1]} 44. Kg3 {[%clk 0:00:55.2]} 1-0